[Event "FIDE Candidates 2026"]
[White "Bluebaum,Matthias"]
[Black "Caruana,Fabiano"]
[Site "Agios Georgios Pegeia"]
[Round "12.3"]
[Annotator "TA"]
[Result "1/2-1/2"]
[Date "2026.04.12"]
[WhiteElo "2698"]
[BlackElo "2795"]
[PlyCount "104"]
[TimeControl "60"]

{[%evp 9,104,23,28,14,33,27,20,22,32,15,33,36,37,37,18,13,13,10,12,12,7,0,0,0,3,-1,8,1,19,4,33,11,18,21,26,1,6,10,8,8,8,9,20,35,27,27,25,24,25,35,25,19,30,33,32,29,25,28,56,53,65,0,0,0,0,0,0,0,13,0,0,0,0,0,0,0,14,14,14,8,8,13,49,0,0,0,0,0,0,0,0,0,0,0,0,0,0]} 1. d4 {[%emt 0:0:3]} Nf6 {[%emt 0:0:4]} 2. c4 {[%emt 0:0:4]} e6 {[%emt 0:0:3]} 3. Nf3 {[%emt 0:0:5]} d5 {[%emt 0:0:4]} 4. Nc3 {[%emt 0:0:5]} Nbd7 {[%emt 0:0:5]} 5. cxd5 {[%emt 0:0:11]} exd5 {[%emt 0:0:6]} 6. Qc2 {[%emt 0:0:3] D35: Queen's Gambit Declined: Exchange Variation.} Bb4 {[%emt 0:1:9]} 7. Bf4 {[%emt 0:0:13]} O-O {[%emt 0:2:25]} 8. e3 {[%emt 0:0:13]} Nh5 {[%emt 0:4:19][%cal Bf6h5,Bh5g7,Bg7f5,Bf5d6][%mdl 32]} 9. Bg5 {[%emt 0:1:21][%cal Bf4g5,Bg5h4,Bh4g3][%mdl 32]} f6 $146 {[%emt 0:0:17]} ({Predecessor:} 9... Ndf6 10. Bh4 h6 11. Bd3 Qe7 12. Ne5 g5 13. Bg3 c5 14. Qe2 Kg7 15. O-O Nxg3 16. hxg3 {½-½ Hansen,J (2317)-Perry,W (2268) W-Cup22 sf06 email 2019} )10. Bh4 {[%emt 0:2:25]} Nb6 {[%emt 0:0:10]} 11. Be2 {[%emt 0:7:46]} g6 {[%emt 0:0:51]} 12. Nd2 {[%emt 0:2:13]} Ng7 {[%emt 0:0:10]} 13. Bg3 {[%emt 0:5:53]} c6 {[%emt 0:5:0]} 14. h3 {[%emt 0:1:28]} Nf5 {[%emt 0:2:50] White must now prevent ...Nxg3.} 15. Bh2 {[%emt 0:1:22]} Bd6 {[%emt 0:0:5]} 16. O-O {[%emt 0:3:53]} Bxh2+ {[%emt 0:5:2]} 17. Kxh2 {[%emt 0:0:14]} Nd6 {[%emt 0:0:3]} 18. b4 {[%emt 0:10:7]} Bf5 {[%emt 0:12:28]} 19. Qb3 {[%emt 0:0:30]} Kg7 {[%emt 0:4:17]} 20. b5 {[%emt 0:8:16]} cxb5 {[%emt 0:11:18]} 21. Nxb5 {[%emt 0:0:44]} Nxb5 {[%emt 0:0:5]} 22. Bxb5 {[%emt 0:0:46]} Rf7 {[%emt 0:5:26]} 23. Rfc1 {[%emt 0:15:31]} Rc7 {[%emt 0:0:45]} 24. Rxc7+ {[%emt 0:5:34]} Qxc7+ {[%emt 0:0:17]} 25. Kg1 {[%emt 0:0:4]} Rc8 {[%emt 0:7:24]} 26. Qb4 {[%emt 0:1:57]} Kf7 {[%emt 0:20:6]} 27. Nb3 {[%emt 0:1:32]} Nc4 {[%emt 0:1:39]} 28. Rc1 {[%emt 0:7:42]} Qe7 {[%emt 0:1:14]} 29. Qa4 {[%emt 0:4:19]} Nd6 {[%emt 0:5:15]} 30. Rxc8 {[%emt 0:1:15]} Bxc8 {[%emt 0:0:5]} 31. Be2 {[%emt 0:3:1]} b6 {[%emt 0:0:8]} 32. Bf3 {[%emt 0:1:11]} Qb7 $1 {[%emt 0:5:40]} 33. Nc1 {[%emt 0:7:35]} Bf5 {[%emt 0:0:12]} 34. Ne2 {[%emt 0:3:40]} Be4 {[%emt 0:0:20]} 35. Nc3 {[%emt 0:2:38]} ({White should try} 35. Bxe4 $14 Nxe4 36. h4 )Bxf3 $11 {[%emt 0:5:16]} 36. gxf3 {[%emt 0:0:2][%mdl 4096] Endgame KQN-KQN} Nf5 {[%emt 0:0:33]} 37. Qb3 {[%emt 0:2:33]} Ne7 {[%emt 0:0:34]} 38. e4 {[%emt 0:2:0]} Qd7 {[%emt 0:3:38]} 39. Kg2 {[%emt 0:0:35]} Ke6 {[%emt 0:3:48]} 40. a4 {[%emt 0:0:0]} g5 {[%emt 0:0:0][%cal Bg6g5,Bg5g4][%mdl 32]} 41. Qc2 {[%emt 0:9:48]} f5 {[%emt 0:10:11]} 42. Qb3 {[%emt 0:1:48]} fxe4 {[%emt 0:13:50]} 43. fxe4 {[%emt 0:0:27]} Kf6 {[%emt 0:0:2]} 44. Nxd5+ {[%emt 0:3:23]} Nxd5 {[%emt 0:0:4]} 45. exd5 {[%emt 0:0:4] KQ-KQ. White is a pawn up.} g4 {[%emt 0:4:1]} 46. Qc4 {[%emt 0:4:46]} (46. h4 $14 {feels stronger.} )gxh3+ {[%emt 0:0:7] The position is equal.} 47. Kh2 {[%emt 0:3:23]} Qf5 {[%emt 0:0:58]} 48. Qc6+ {[%emt 0:3:3]} Kg5 {[%emt 0:0:18]} 49. d6 {[%emt 0:1:41]} Qxf2+ {[%emt 0:0:20]} 50. Kxh3 {[%emt 0:0:5]} Qe3+ {[%emt 0:3:44]} 51. Kg2 {[%emt 0:0:39]} Qd2+ {[%emt 0:0:4]} 52. Kg3 {[%emt 0:0:32]} Qd3+ {[%emt 0:0:21] Weighted Error Value: White=0.05 (flawless) /Black=0.04 (flawless)   Mistake:       	White=2     	---        Inaccurate:     	---       	Black=3      OK:         	White=11    	Black=10     Best:        	White=1     	---        Strong:       	---       	Black=1} 1/2-1/2

[Event "FIDE Candidates 2026"]
[White "Esipenko,Andrey"]
[Black "Praggnanandhaa R"]
[Site "Agios Georgios Pegeia"]
[Round "12.4"]
[Annotator "TA"]
[Result "1/2-1/2"]
[Date "2026.04.12"]
[WhiteElo "2698"]
[BlackElo "2741"]
[PlyCount "92"]
[TimeControl "60"]

{[%evp 9,92,9,17,0,0,0,0,0,0,0,0,0,0,-12,0,0,0,0,0,0,0,0,0,0,0,0,0,0,0,0,0,0,0,-33,-35,-41,-39,-33,-33,-33,-35,-57,-16,-20,-18,-22,-8,-19,-11,-11,-11,-28,-28,-33,-24,-20,-14,-24,-22,-31,-16,-18,-9,-21,-27,-35,0,0,0,0,0,0,0,0,0,-7,-12,-7,0,0,0,-9,0,0,0]} 1. c4 {[%emt 0:0:3]} e6 {[%emt 0:0:42]} 2. g3 {[%emt 0:0:18]} d5 {[%emt 0:0:7]} 3. Bg2 {[%emt 0:0:7]} d4 {[%emt 0:0:42]} 4. Nf3 {[%emt 0:0:22]} Nc6 {[%emt 0:0:11]} 5. O-O {[%emt 0:0:27]} Nh6 {[%emt 0:0:14]} 6. e3 {[%emt 0:0:50] A13: English Opening: 1...e6.} g6 $146 {[%emt 0:0:11]} ({Predecessor:} 6... Be7 7. d3 O-O 8. exd4 Nf5 9. d5 exd5 10. Nc3 dxc4 11. dxc4 Nd6 12. Qe2 Re8 {0-1 Matlakov,M (2673)-Maghsoodloo,P (2719) Budapest Hetenyi Memorial 2023 (4)} )7. b4 {[%emt 0:3:16] [#] Hoping for b5.} dxe3 {[%emt 0:0:26]} 8. Bb2 {[%emt 0:9:35]} exf2+ {[%emt 0:0:11]} 9. Rxf2 {[%emt 0:1:5]} f6 {[%emt 0:0:7]} 10. b5 {[%emt 0:7:53]} Na5 {[%emt 0:0:24]} 11. Qe2 {[%emt 0:6:42]} a6 {[%emt 0:25:55]} 12. Ng5 {[%emt 0:52:24]} Bc5 {[%emt 0:4:56]} 13. Ne4 {[%emt 0:2:19]} ({Reject} 13. Nxe6 $6 Bxf2+ 14. Kxf2 Bxe6 15. Qxe6+ Qe7 16. Qxe7+ Kxe7 $17 )Bxf2+ {[%emt 0:1:20]} 14. Qxf2 {[%emt 0:0:31]} Ng4 {[%emt 0:2:32]} 15. Nxf6+ {[%emt 0:5:11]} Nxf6 {[%emt 0:2:35]} 16. Bxf6 {[%emt 0:0:8]} Rf8 {[%emt 0:0:10]} 17. Bxd8 {[%emt 0:0:8] A sharp opening A strong pair of Bishops.} Rxf2 {[%emt 0:0:3]} 18. Kxf2 {[%emt 0:1:8]} Kxd8 {[%emt 0:0:7]} 19. Na3 {[%emt 0:0:10]} axb5 {[%emt 0:6:13]} 20. cxb5 {[%emt 0:0:17]} Ra7 {[%emt 0:3:16]} 21. b6 {[%emt 0:8:9]} cxb6 {[%emt 0:1:17]} 22. Nb5 {[%emt 0:0:10]} Ra8 {[%emt 0:5:1]} 23. Nc3 {[%emt 0:2:11]} Bd7 {[%emt 0:4:22]} 24. Rb1 {[%emt 0:0:22]} Kc7 {[%emt 0:0:11]} 25. Rb4 {[%emt 0:0:24]} Rf8+ {[%emt 0:4:32]} 26. Ke3 {[%emt 0:0:30]} Bc6 {[%emt 0:2:13]} 27. Be4 {[%emt 0:0:26]} Kd6 {[%emt 0:7:22]} 28. Bd3 {[%emt 0:1:52]} Kc5 {[%emt 0:2:44]} 29. a3 {[%emt 0:3:17]} e5 {[%emt 0:4:3]} 30. Ne4+ {[%emt 0:2:55]} Bxe4 {[%emt 0:0:28]} 31. Rxe4 $11 {[%emt 0:0:45][%mdl 4096] Endgame KRB-KRN. Black is a pawn up.} Nc6 {[%emt 0:1:0]} 32. a4 {[%emt 0:0:58]} Kd6 {[%emt 0:2:37]} 33. Rc4 {[%emt 0:0:22]} Rd8 {[%emt 0:7:14]} 34. h4 {[%emt 0:1:3]} Rf8 {[%emt 0:4:15]} 35. Rc1 {[%emt 0:0:50]} Nb4 {[%emt 0:4:51]} 36. Be4 {[%emt 0:0:25]} Ra8 {[%emt 0:0:14]} 37. Rf1 {[%emt 0:1:13]} Rxa4 {[%emt 0:4:6]} 38. Rf7 {[%emt 0:0:32] The position is equal.} Ra3+ {[%emt 0:0:9]} 39. d3 {[%emt 0:0:18]} Nc2+ {[%emt 0:1:33]} 40. Kf3 {[%emt 0:0:0]} Nb4 {[%emt 0:0:0]} 41. Rxh7 {[%emt 0:11:33]} Nxd3 {[%emt 0:9:40]} 42. Kg2 {[%emt 0:2:39]} Ra2+ {[%emt 0:3:20]} 43. Kg1 {[%emt 0:4:1]} Ra1+ {[%emt 0:3:32]} 44. Kg2 {[%emt 0:0:5]} Ra2+ {[%emt 0:0:26]} 45. Kg1 {[%emt 0:0:6]} Ra1+ {[%emt 0:0:4]} 46. Kg2 {[%emt 0:0:5]} Ra2+ {[%emt 0:0:4] Weighted Error Value: White=0.04 (flawless) /Black=0.03 (flawless)   Inaccurate:     	White=1     	Black=2      OK:         	White=6     	Black=3      Best:        	White=1     	---} 1/2-1/2

[Event "FIDE Candidates 2026"]
[White "Giri,Anish"]
[Black "Sindarov,Javokhir"]
[Site "Agios Georgios Pegeia"]
[Round "13.1"]
[Annotator "TA"]
[Result "1/2-1/2"]
[Date "2026.04.14"]
[WhiteElo "2753"]
[BlackElo "2745"]
[PlyCount "116"]
[TimeControl "60"]

{[%evp 14,116,24,34,36,17,30,33,35,31,29,29,27,18,23,14,22,14,11,13,20,23,30,22,24,4,36,31,33,28,22,21,32,32,34,28,31,25,37,15,18,15,18,18,22,8,37,33,38,38,38,35,45,44,78,12,13,12,12,6,12,12,14,4,4,0,0,0,0,0,0,0,0,0,0,0,0,0,0,0,0,0,0,0,0,0,0,0,0,0,0,0,0,0,0,0,0,0,0,0,0,0,0,0,0]} 1. d4 {[%emt 0:0:4]} d5 {[%emt 0:0:5]} 2. c4 {[%emt 0:0:3]} e6 {[%emt 0:0:4]} 3. Nc3 {[%emt 0:0:4]} Be7 {[%emt 0:0:4]} 4. cxd5 {[%emt 0:0:8]} exd5 {[%emt 0:0:3]} 5. Bf4 {[%emt 0:0:5]} Nf6 {[%emt 0:0:4]} 6. e3 {[%emt 0:0:4]} O-O {[%emt 0:0:5]} 7. Bd3 {[%emt 0:0:26]} c5 {[%emt 0:0:8]} 8. Nge2 {[%emt 0:0:14]} Nc6 {[%emt 0:0:6] D35: Queen's Gambit Declined: Exchange Variation.} 9. O-O {[%emt 0:0:8]} Bg4 {[%emt 0:0:4]} 10. dxc5 {[%emt 0:0:8]} Bxc5 {[%emt 0:0:4] White is slightly better.} 11. h3 {[%emt 0:0:6]} Bxe2 {[%emt 0:0:5]} 12. Nxe2 {[%emt 0:0:4]} d4 {[%emt 0:0:5]} 13. e4 {[%emt 0:0:23]} Re8 $146 {[%emt 0:1:3]} ({Predecessor:} 13... Nd7 14. a3 Re8 15. Rc1 Rc8 16. b4 Bf8 17. Bb1 a5 18. Nxd4 axb4 19. axb4 Nxb4 20. Rxc8 Qxc8 {½-½ David,A (2528)-Mastrovasilis,A (2497) Paphos op 1st 2023 (5)} )14. Ng3 {[%emt 0:0:4]} Nd7 {[%emt 0:1:18]} 15. a3 {[%emt 0:12:20]} Nde5 {[%emt 0:12:52]} 16. Bxe5 {[%emt 0:2:50]} Nxe5 {[%emt 0:0:10]} 17. f4 {[%emt 0:0:7]} Nxd3 {[%emt 0:0:5]} 18. Qxd3 {[%emt 0:0:3]} Qb6 {[%emt 0:3:0]} 19. e5 {[%emt 0:8:38]} Qa6 {[%emt 0:5:27]} 20. Qxa6 {[%emt 0:3:47]} bxa6 {[%emt 0:0:5]} 21. Ne4 {[%emt 0:1:15]} Bb6 {[%emt 0:0:57]} 22. Nd6 {[%emt 0:13:30]} Re6 {[%emt 0:0:45]} 23. Nc4 {[%emt 0:15:0]} f6 {[%emt 0:0:42]} 24. Rad1 {[%emt 0:13:17]} fxe5 {[%emt 0:0:44]} 25. fxe5 {[%emt 0:0:15]} Rd8 {[%emt 0:1:58]} 26. Rf4 {[%emt 0:5:51]} d3+ {[%emt 0:15:42]} 27. Kf1 {[%emt 0:2:8]} Bc7 {[%emt 0:0:19]} 28. Re4 {[%emt 0:4:10]} Rd5 {[%emt 0:0:48]} 29. Kf2 {[%emt 0:1:9]} Bxe5 {[%emt 0:2:13]} 30. Rxe5 {[%emt 0:0:12]} Rexe5 {[%emt 0:0:4]} 31. Nxe5 {[%emt 0:0:3]} Rxe5 {[%emt 0:0:9]} 32. Rxd3 $11 {[%emt 0:0:2][%mdl 4096] Endgame KR-KR} Rb5 {[%emt 0:0:12]} 33. b3 {[%emt 0:1:10]} Kf7 {[%emt 0:2:35]} 34. a4 {[%emt 0:2:30]} (34. Rd7+ $16 Kf6 35. b4 (35. Rxa7 Rxb3 36. Rxa6+ Kg5 $14 ))Rb7 {[%emt 0:1:27] The position is equal.} 35. Ke2 {[%emt 0:5:9]} Ke6 {[%emt 0:0:36]} 36. Re3+ {[%emt 0:1:25]} Kd6 {[%emt 0:0:53]} 37. Kd2 {[%emt 0:0:16]} a5 {[%emt 0:0:52]} 38. Rg3 {[%emt 0:3:40]} g6 {[%emt 0:0:28]} 39. Kc3 {[%emt 0:3:7]} Rc7+ {[%emt 0:0:7]} 40. Kb2 {[%emt 0:0:0]} Rc5 {[%emt 0:0:0]} 41. h4 {[%emt 0:2:34]} Re5 {[%emt 0:1:9]} 42. Rg4 {[%emt 0:3:24]} Kc6 {[%emt 0:8:1]} 43. Rc4+ {[%emt 0:1:10]} Kd6 {[%emt 0:1:26]} 44. g4 {[%emt 0:4:38]} Re2+ {[%emt 0:0:50]} 45. Ka3 {[%emt 0:0:40]} h6 {[%emt 0:14:4]} 46. Rd4+ {[%emt 0:6:24]} Kc6 {[%emt 0:1:13]} 47. Rf4 {[%emt 0:0:14]} Rh2 {[%emt 0:1:3]} 48. g5 {[%emt 0:1:33]} hxg5 {[%emt 0:0:4]} 49. Rf6+ {[%emt 0:0:5]} Kb7 {[%emt 0:0:3]} 50. hxg5 {[%emt 0:0:3]} Rg2 {[%emt 0:0:5]} 51. Rxg6 {[%emt 0:0:4]} a6 {[%emt 0:0:7]} 52. Rg8 {[%emt 0:0:51]} Ka7 {[%emt 0:0:7]} 53. Rg7+ {[%emt 0:0:12]} (53. b4 $5 Rg3+ $8 54. Kb2 $11 )Kb6 {[%emt 0:0:8]} 54. g6 {[%emt 0:1:3]} Kc6 {[%emt 0:0:4]} 55. Ra7 {[%emt 0:0:4]} Kb6 {[%emt 0:0:5]} 56. Rg7 {[%emt 0:0:3]} Kc6 {[%emt 0:0:5]} 57. Ra7 {[%emt 0:0:13]} Kb6 {[%emt 0:0:4]} 58. Rg7 {[%emt 0:0:4]} Kc6 {[%emt 0:0:15] Weighted Error Value: White=0.05 (flawless) /Black=0.04 (flawless)   Mistake:       	White=1     	---        Inaccurate:     	---       	Black=3      OK:         	White=5     	Black=12} 1/2-1/2

[Event "FIDE Candidates 2026"]
[White "Caruana,Fabiano"]
[Black "Praggnanandhaa R"]
[Site "Agios Georgios Pegeia"]
[Round "13.2"]
[Annotator "TA"]
[Result "1/2-1/2"]
[Date "2026.04.14"]
[WhiteElo "2795"]
[BlackElo "2741"]
[PlyCount "85"]
[TimeControl "60"]

{[%evp 21,84,0,12,0,0,0,0,-13,12,-17,0,-2,-6,-5,42,20,30,17,41,50,22,24,192,177,191,127,154,144,144,147,142,135,139,136,141,133,133,162,154,161,165,165,165,160,165,165,165,165,165,165,165,165,165,163,165,165,165,165,165,165,165,165,143,13,13]} 1. d4 {[%emt 0:0:3]} Nf6 {[%emt 0:0:18]} 2. c4 {[%emt 0:0:8]} e6 {[%emt 0:0:5]} 3. Nc3 {[%emt 0:0:4]} Bb4 {[%emt 0:0:6]} 4. Nf3 {[%emt 0:0:4]} b6 {[%emt 0:2:17]} 5. Bg5 {[%emt 0:0:13][%cal Bc1g5,Bg5h4,Bh4g3][%mdl 32]} h6 {[%emt 0:0:58]} 6. Bh4 {[%emt 0:0:5]} g5 {[%emt 0:0:41]} 7. Bg3 {[%emt 0:0:6]} Ne4 {[%emt 0:0:4]} 8. Qc2 {[%emt 0:0:9]} Bb7 {[%emt 0:1:23]} 9. e3 {[%emt 0:0:11]} d6 {[%emt 0:5:22]} 10. Bd3 {[%emt 0:0:13]} Bxc3+ {[%emt 0:4:1]} 11. bxc3 {[%emt 0:0:10]} f5 {[%emt 0:15:42]} 12. c5 {[%emt 0:0:52] E13: Queen's Indian/Nimzo-Indian hybrid: 4 Nc3 Bb7 5 Bg5 h6 6 Bh4 Bb4.} Nd7 {[%emt 0:10:38]} 13. cxd6 {[%emt 0:0:11]} cxd6 {[%emt 0:0:11]} 14. O-O {[%emt 0:1:18]} Qe7 $146 {[%emt 0:18:0]} ({Predecessor:} 14... O-O 15. Nd2 Ndf6 16. Nxe4 Nxe4 17. f3 Nxg3 18. hxg3 Rc8 19. Rac1 Qe7 20. e4 f4 {1-0 Moiseenko,A (2561)-Idani,P (2605) Chess.com Classic Div 3 W rapid 2024 (1.3)} )15. Bxe4 {[%emt 0:38:27]} Bxe4 {[%emt 0:1:22]} 16. Qe2 {[%emt 0:0:3]} Bb7 {[%emt 0:4:15]} 17. Nd2 {[%emt 0:6:22]} h5 {[%emt 0:1:17]} (17... Rc8 $11 )18. Nc4 $14 {[%emt 0:10:13]} f4 {[%emt 0:10:11]} 19. exf4 {[%emt 0:0:5]} h4 {[%emt 0:0:4]} 20. fxg5 {[%emt 0:0:43]} hxg3 {[%emt 0:0:21]} 21. fxg3 {[%emt 0:0:4]} Rc8 $2 {[%emt 0:21:24] [#]} (21... Rg8 $11 {and Black is okay.} )22. g6 $18 {[%emt 0:32:10][%mdl 1024] White has strong compensation.} Ba6 {[%emt 0:0:41]} 23. g7 {[%emt 0:0:22]} Rg8 $16 {[%emt 0:0:17]} 24. Qh5+ {[%emt 0:0:3]} Kd8 {[%emt 0:0:4]} 25. Rf7 {[%emt 0:0:5] White has more active pieces. The black rooks are passive.} Bxc4 {[%emt 0:0:11]} 26. Rxe7 {[%emt 0:0:3]} Kxe7 {[%emt 0:0:5]} 27. Qg6 {[%emt 0:0:49]} Nf6 {[%emt 0:1:34]} 28. d5 {[%emt 0:0:43]} Nxd5 {[%emt 0:2:55]} 29. h4 {[%emt 0:2:3] The board is on fire.} Nf6 {[%emt 0:1:12]} 30. h5 {[%emt 0:0:36]} Nxh5 {[%emt 0:0:29]} 31. Qxh5 {[%emt 0:0:3]} Rxg7 {[%emt 0:0:5]} 32. Rd1 {[%emt 0:1:58]} Bd5 {[%emt 0:5:13]} 33. Qh4+ {[%emt 0:10:34]} Kd7 {[%emt 0:0:6]} 34. Qa4+ {[%emt 0:1:25]} Kd8 {[%emt 0:0:56]} 35. Rf1 {[%emt 0:1:49]} Rxc3 {[%emt 0:1:13]} 36. Rf8+ {[%emt 0:0:10]} Kc7 {[%emt 0:0:4]} 37. Qxa7+ {[%emt 0:2:37]} Bb7 {[%emt 0:0:2]} 38. Qb8+ {[%emt 0:1:43]} Kc6 {[%emt 0:0:4]} 39. Qe8+ {[%emt 0:0:10]} Kc5 {[%emt 0:2:42]} 40. Qxe6 {[%emt 0:0:0]} Rcxg3 {[%emt 0:0:0]} 41. Rf5+ {[%emt 0:19:4]} Kc6 {[%emt 0:3:58]} 42. Rf2 {[%emt 0:0:19]} (42. Qc4+ $16 Kd7 43. Rf7+ Rxf7 44. Qxf7+ Kc8 45. Qe8+ Kc7 46. Qe7+ Kc8 47. Qxd6 Rxg2+ 48. Kf1 )Kc7 $11 {[%emt 0:0:59]} 43. Rf7+ {[%emt 0:0:23] Weighted Error Value: White=0.12 (very precise) /Black=0.12 (very precise)   Loses game:     	---       	Black=1      Mistake:       	White=2     	Black=1      Inaccurate:     	White=1     	---        OK:         	White=1     	---} 1/2-1/2

[Event "FIDE Candidates 2026"]
[White "Nakamura,Hikaru"]
[Black "Bluebaum,Matthias"]
[Site "Agios Georgios Pegeia"]
[Round "13.3"]
[Annotator "TA"]
[Result "1/2-1/2"]
[Date "2026.04.14"]
[WhiteElo "2810"]
[BlackElo "2698"]
[PlyCount "81"]
[TimeControl "60"]

{[%evp 16,80,0,0,0,-3,7,5,13,12,18,0,0,3,6,0,0,0,0,0,0,-35,-28,-28,-10,-29,-2,-8,0,0,0,0,0,0,0,0,0,0,0,-25,0,0,0,0,0,0,0,-1,0,-1,-1,-1,0,0,0,0,0,0,0,-29,0,-1,-1,-33,-9,-38,-38]} 1. c4 {[%emt 0:0:7]} e6 {[%emt 0:0:10]} 2. Nc3 {[%emt 0:0:10]} d5 {[%emt 0:0:5]} 3. d4 {[%emt 0:0:5]} Nf6 {[%emt 0:0:4]} 4. Bg5 {[%emt 0:0:17]} Be7 {[%emt 0:0:19]} 5. Nf3 {[%emt 0:0:13]} h6 {[%emt 0:0:24]} 6. Bxf6 {[%emt 0:0:15]} Bxf6 {[%emt 0:0:6]} 7. cxd5 {[%emt 0:0:6]} exd5 {[%emt 0:0:4]} 8. e3 {[%emt 0:0:5]} O-O {[%emt 0:0:20]} 9. Qb3 {[%emt 0:0:4]} c6 {[%emt 0:0:44] D55: Queen's Gambit Declined: 4 Bg5 Be7: Lines without ...h6 and 6...h6 7 Bxf6.} 10. Bd3 {[%emt 0:0:6]} Qb6 {[%emt 0:0:16]} 11. Qc2 {[%emt 0:0:30]} Be6 {[%emt 0:0:13] The position is equal.} 12. O-O {[%emt 0:0:13]} Nd7 {[%emt 0:0:5]} 13. Na4 {[%emt 0:0:7]} Qb4 {[%emt 0:0:7]} 14. a3 {[%emt 0:0:19]} Qe7 $146 {[%emt 0:1:59]} ({Predecessor:} 14... Qd6 15. b4 b6 16. Rfc1 Rfc8 17. Ba6 Rc7 18. Nc3 Bd8 19. Qb3 Nb8 20. Bf1 g6 {½-½ Hildebrand,G (2131)-Lemke,B (2095) GER DSF C21 f email rapid 2022} )15. b4 {[%emt 0:2:7]} b5 {[%emt 0:0:34]} 16. Nc5 {[%emt 0:10:59]} Nxc5 {[%emt 0:1:9]} 17. bxc5 {[%emt 0:0:6]} a5 {[%emt 0:2:48]} 18. a4 {[%emt 0:0:26]} b4 {[%emt 0:7:15]} 19. Rae1 {[%emt 0:1:36]} Qd7 {[%emt 0:11:32]} 20. Nd2 {[%emt 0:1:49]} g6 {[%emt 0:14:59]} 21. f4 {[%emt 0:35:41]} Bf5 {[%emt 0:1:17]} 22. Bxf5 {[%emt 0:2:31]} Qxf5 {[%emt 0:0:21]} 23. Qxf5 {[%emt 0:0:18]} gxf5 {[%emt 0:0:2]} 24. Nf3 {[%emt 0:0:30]} Kh7 {[%emt 0:6:55]} 25. Kf2 {[%emt 0:0:57]} Rae8 {[%emt 0:1:32]} 26. Ke2 {[%emt 0:0:49]} Rg8 {[%emt 0:4:53]} 27. g3 {[%emt 0:0:17]} Re6 {[%emt 0:3:44]} 28. Kd3 {[%emt 0:1:34]} Rg7 {[%emt 0:4:18]} 29. Rg1 {[%emt 0:1:53]} h5 {[%emt 0:3:15]} 30. h3 {[%emt 0:0:46]} Kg8 {[%emt 0:4:53]} 31. Ref1 {[%emt 0:6:53]} Bd8 {[%emt 0:5:14]} 32. Ne5 {[%emt 0:6:52]} Bc7 {[%emt 0:5:54]} 33. Nf3 {[%emt 0:1:19]} Bd8 {[%emt 0:0:44]} 34. Rf2 {[%emt 0:1:4]} Rh6 {[%emt 0:4:48]} 35. Rfg2 {[%emt 0:2:16]} Kf8 {[%emt 0:2:13]} 36. Ke2 {[%emt 0:0:12]} Rg8 {[%emt 0:1:22]} 37. Rh2 {[%emt 0:1:48]} Rg7 {[%emt 0:1:42]} 38. Ne5 {[%emt 0:3:5]} Bc7 {[%emt 0:0:25]} 39. Nd3 {[%emt 0:0:6]} Ke7 {[%emt 0:2:35]} 40. Kf3 {[%emt 0:0:0]} Rg8 {[%emt 0:0:0]} 41. Rhg2 {[%emt 0:0:23] Weighted Error Value: White=0.06 (flawless) /Black=0.05 (flawless)   Inaccurate:     	White=4     	Black=2      OK:         	White=7     	Black=9      Best:        	White=1     	---} 1/2-1/2

[Event "FIDE Candidates 2026"]
[White "Wei,Yi"]
[Black "Esipenko,Andrey"]
[Site "Agios Georgios Pegeia"]
[Round "13.4"]
[Annotator "TA"]
[Result "1-0"]
[Date "2026.04.14"]
[WhiteElo "2754"]
[BlackElo "2698"]
[PlyCount "91"]
[TimeControl "60"]

{[%evp 12,90,23,10,10,0,22,-8,-10,-11,-20,-16,0,-25,-7,-18,-1,-14,-5,-25,-2,-12,0,0,0,0,20,22,52,52,51,52,51,67,71,39,69,72,79,83,77,81,75,55,123,56,59,56,125,56,57,56,71,0,9,0,68,50,83,53,76,0,70,0,55,80,166,172,143,0,16,0,122,116,178,147,128,134,274,279,272]} 1. e4 {[%emt 0:0:6]} e5 {[%emt 0:0:11]} 2. Nf3 {[%emt 0:0:8]} Nf6 {[%emt 0:0:7]} 3. Nxe5 {[%emt 0:5:40]} d6 {[%emt 0:0:45]} 4. Nf3 {[%emt 0:0:53]} Nxe4 {[%emt 0:0:21]} 5. c4 {[%emt 0:0:7]} Be7 {[%emt 0:0:41]} 6. d4 {[%emt 0:0:32]} d5 {[%emt 0:0:17]} 7. Bd3 $1 {[%emt 0:0:11][%mdl 4] outshines the older 7.Nc3.} Bb4+ {[%emt 0:0:35] C42: Petroff Defence: 3 Nxe5 and unusual White 3rd moves.} 8. Kf1 {[%emt 0:0:29]} c6 {[%emt 0:0:23]} 9. Qc2 $146 {[%emt 0:11:14]} ({Predecessor:} 9. Qb3 Be7 10. cxd5 Nf6 11. Nc3 O-O 12. Bg5 cxd5 13. Bxf6 Bxf6 14. Nxd5 Nc6 15. Nxf6+ Qxf6 {½-½ Mamedov,R (2680)-Kuzubov,Y (2646) TUR-chT Kocaeli 2017 (10.5)} )O-O {[%emt 0:12:22] The position is equal.} 10. a3 {[%emt 0:2:33]} Ba5 {[%emt 0:2:43]} 11. Bf4 {[%emt 0:10:17]} Nd7 {[%emt 0:17:36]} 12. Nc3 {[%emt 0:14:50]} Bxc3 {[%emt 0:16:46]} 13. bxc3 {[%emt 0:0:35]} Qa5 {[%emt 0:11:7]} 14. cxd5 {[%emt 0:5:7]} cxd5 {[%emt 0:0:20]} 15. c4 {[%emt 0:0:9]} b6 {[%emt 0:18:13]} 16. Nd2 {[%emt 0:4:3]} f5 {[%emt 0:3:13]} 17. Kg1 {[%emt 0:30:23][%cal Bf1g1,Bg1h2,Bh2h3][%mdl 32]} Bb7 {[%emt 0:3:24]} 18. f3 {[%emt 0:3:22]} Rac8 {[%emt 0:5:48]} 19. h4 {[%emt 0:0:18]} (19. fxe4 $2 fxe4 20. Be2 Rxf4 $19 )Ndc5 {[%emt 0:8:43]} 20. dxc5 {[%emt 0:4:3]} Qxc5+ {[%emt 0:0:4]} 21. Kh2 {[%emt 0:0:1]} Qf2 {[%emt 0:0:35]} 22. Kh3 {[%emt 0:0:13]} (22. Nxe4 Qxh4+ 23. Kg1 Qxf4 $11 )Qd4 {[%emt 0:0:51]} 23. Bxe4 {[%emt 0:4:44]} (23. fxe4 fxe4 24. Nf3 Qxd3 25. Qxd3 exd3 $15 )fxe4 {[%emt 0:0:8]} 24. Bg3 {[%emt 0:0:5]} e3 {[%emt 0:1:51]} 25. Nb3 {[%emt 0:0:4]} Qf6 {[%emt 0:0:4]} 26. c5 {[%emt 0:3:54]} Ba6 {[%emt 0:1:18]} 27. Rac1 {[%emt 0:2:34]} bxc5 {[%emt 0:0:45]} ({Black should try} 27... Bc4 $14 )28. Qd1 {[%emt 0:7:4]} (28. Nxc5 $16 Bc4 29. Nb7 )Bc4 {[%emt 0:3:12]} 29. Na5 {[%emt 0:0:9]} Qe6+ {[%emt 0:0:28]} 30. Kh2 {[%emt 0:0:2] [#]} Ba6 {[%emt 0:0:5]} 31. Nb3 {[%emt 0:1:20]} Bc4 {[%emt 0:0:7]} 32. Na5 {[%emt 0:0:43]} (32. Re1 $16 )Ba6 $1 $11 {[%emt 0:0:2]} 33. Nb3 {[%emt 0:0:14]} (33. Qb3 $11 )Bc4 $1 $14 {[%emt 0:0:9]} 34. Re1 {[%emt 0:0:22]} Rfe8 {[%emt 0:1:33]} 35. Na5 {[%emt 0:0:5] [#]} Ba6 {[%emt 0:0:5]} 36. Nb3 {[%emt 0:0:2]} Bc4 $1 {[%emt 0:0:14]} 37. Na5 {[%emt 0:1:22]} Ba6 {[%emt 0:0:5]} 38. Qa4 {[%emt 0:1:17]} Red8 {[%emt 0:3:4]} (38... c4 $16 {was called for.} )39. Nb3 $18 {[%emt 0:0:2]} Bc4 {[%emt 0:0:53]} 40. Na5 {[%emt 0:0:0]} (40. Bf4 $16 )Ba6 $11 {[%emt 0:0:0]} 41. Nb3 {[%emt 0:5:52]} ({Better is} 41. Bf4 $11 d4 42. Nb3 )Bc4 $16 {[%emt 0:1:17]} 42. Rc3 {[%emt 0:18:16] And now Na5 would win.} e2 {[%emt 0:18:28]} (42... Bxb3 $16 43. Qxb3 c4 44. Rcxe3 cxb3 45. Rxe6 d4 )43. Nc1 {[%emt 0:2:35][%cal Oc3c4]} ({Not} 43. Qxa7 d4 44. Rxc4 (44. Nxc5 Rxc5 45. Qxc5 dxc3 $17 )Qxc4 $11 )Qa6 {[%emt 0:1:59]} 44. Qc2 {[%emt 0:2:2][%cal Rc1e2]} (44. Qxa6 Bxa6 45. Nb3 (45. Nxe2 $2 d4 $16 )d4 46. Rxc5 d3 $18 )Re8 {[%emt 0:0:46]} (44... Bb5 $16 45. a4 (45. Nxe2 $2 d4 $16 )Qxa4 46. Qxa4 (46. Nxe2 Qxc2 47. Rxc2 d4 $14 )Bxa4 )45. Nd3 $18 {[%emt 0:1:20]} Qf6 {[%emt 0:1:7]} 46. Rxe2 {[%emt 0:0:45] Weighted Error Value: White=0.21 (precise) /Black=0.22 (precise)   Missed win:     	White=1     	---        Mistake:       	White=5     	Black=4      Inaccurate:     	White=3     	Black=3      OK:         	White=3     	Black=5      Best:        	White=1     	Black=2      Strong:       	---       	Black=3} 1-0